[Event "8th Montevideo Open 2025"]
[Site "Montevideo"]
[Date "2025.02.08"]
[Round "8.24"]
[White "Durante, Aurelio"]
[Black "Lopez Betancourt, Bryan"]
[Result "1/2-1/2"]
[Annotator "NA RC"]
[ECO "C90"]
[WhiteElo "1950"]
[BlackElo "1897"]
[PlyCount "93"]
[EventDate "2025.02.01"]
[EventType "swiss"]
[EventCountry "URU"]
[SourceTitle "playchess.com"]
[Source "ChessBase"]
[SourceQuality "1"]
[TimeControl "5400+30"]

1. e4 {[%emt 0:00:01]} e5 {[%emt 0:01:07]} 2. Nf3 {[%emt 0:00:30]} Nc6 {[%emt 0:00:30]} 3. Bb5 {[%emt 0:00:30]} a6 {[%emt 0:00:30]} 4. Ba4 {[%emt 0:00:30]} Nf6 {[%emt 0:00:01]} 5. O-O {[%emt 0:00:09]} Be7 {[%emt 0:00:16]} 6. Re1 {[%emt 0:00:22]} b5 {[%emt 0:00:30]} 7. Bb3 {[%emt 0:00:30]} d6 {[%emt 0:02:00]} 8. c3 {[%emt 0:00:00]} Bb7 {[%emt 0:01:07]} 9. d3 {[%emt 0:00:19]} O-O {[%emt 0:01:22]} 10. Nbd2 h6 {[%emt 0:00:30]} 11. Nf1 {[%emt 0:00:25]} Re8 {[%emt 0:00:06]} 12. a4 {[%emt 0:01:37]} Bf8 {[%emt 0:00:30]} 13. Ne3 {[%emt 0:00:30]} Ne7 {[%emt 0:00:30]} 14. Qe2 {[%emt 0:00:30]} c6 {[%emt 0:00:30]} 15. h3 {[%emt 0:00:30]} Ng6 {[%emt 0:00:00]} 16. Nf5 {[%emt 0:05:27]} Qd7 {[%emt 0:00:39]} 17. N3h4 {[%emt 0:00:54]} Nxh4 {[%emt 0:00:30]} 18. Nxh4 {[%emt 0:00:30]} d5 {[%emt 0:00:40]} 19. Bc2 {[%emt 0:03:26]} Rad8 {[%emt 0:16:40]} 20. Nf5 {[%emt 0:02:54]} dxe4 {[%emt 0:01:12]} 21. dxe4 {[%emt 0:00:04]} Kh7 {[%emt 0:00:33]} 22. Qf3 {[%emt 0:02:19]} Ng8 {[%emt 0:01:49]} 23. g4 {[%emt 0:05:36]} g6 {[%emt 0:00:28]} 24. Ng3 {[%emt 0:01:38]} Bg7 {[%emt 0:01:47]} 25. Be3 {[%emt 0:02:34]} Qe7 {[%emt 0:00:30]} 26. b4 {[%emt 0:00:30]} Qf6 {[%emt 0:00:30]} 27. Qe2 {[%emt 0:00:30]} Qh4 {[%emt 0:00:30]} 28. Kg2 {[%emt 0:02:03]} Bc8 {[%emt 0:07:56]} 29. Bb6 {[%emt 0:01:25]} Rd7 {[%emt 0:01:02]} 30. Rad1 {[%emt 0:02:32]} Rb7 {[%emt 0:00:32]} 31. a5 {[%emt 0:01:20]} Bf6 {[%emt 0:01:12]} 32. Rd6 {[%emt 0:03:56]} Re6 {[%emt 0:02:22]} 33. Red1 {[%emt 0:00:30]} Be7 {[%emt 0:01:43]} 34. R6d3 {[%emt 0:02:08]} Rf6 {[%emt 0:57:26]} 35. Bb3 {[%emt 0:01:38]} Kg7 {[%emt 0:00:00]} 36. Rf3 {[%emt 0:05:31]} Rxf3 {[%emt 0:00:00]} 37. Qxf3 {[%emt 0:00:04]} Qf6 {[%emt 0:01:30]} 38. Qxf6+ {[%emt 0:07:45]} Kxf6 {[%emt 0:00:00]} 39. Ne2 {[%emt 0:48:23]} Rd7 {[%emt 0:01:00]} 40. Rxd7 {[%emt 0:00:00]} Bxd7 {[%emt 0:00:00]} 41. Nc1 {[%emt 0:00:00]} Be6 {[%emt 0:00:00]} 42. Bxe6 {[%emt 0:00:00]} Kxe6 {[%emt 0:00:00]} 43. Nd3 {[%emt 0:00:00]} Nf6 {[%emt 0:00:00]} 44. Kf3 {[%emt 0:00:00]} Nd7 {[%emt 0:00:00]} 45. Be3 {[%emt 0:00:00]} Bf8 {[%emt 0:00:00]} 46. Ke2 {[%emt 0:00:00]} f5 {[%emt 0:00:00]} 47. gxf5+ {[%emt 0:00:00]} 1/2-1/2

[Event "8th Montevideo Open 2025"]
[Site "Montevideo"]
[Date "2025.02.07"]
[Round "8.24"]
[White "Durante, Aurelio"]
[Black "Lopez Betancourt, Bryan"]
[Result "*"]
[Annotator "NA RC"]
[ECO "B14"]
[WhiteElo "1950"]
[BlackElo "1897"]
[PlyCount "54"]
[EventDate "2025.02.01"]
[EventType "swiss"]
[EventCountry "URU"]
[SourceTitle "playchess.com"]
[Source "ChessBase"]
[SourceQuality "1"]
[TimeControl "5400+30"]

1. e4 {[%emt 0:00:01]} c5 {[%emt 0:01:07]} 2. c3 {[%emt 0:00:30]} d5 {[%emt 0:00:30]} 3. exd5 {[%emt 0:00:30]} Nf6 {[%emt 0:00:30]} 4. Nf3 {[%emt 0:00:30]} Nxd5 {[%emt 0:00:30]} 5. d4 {[%emt 0:00:30]} cxd4 {[%emt 0:00:30]} 6. cxd4 {[%emt 0:00:30]} Nc6 {[%emt 0:00:30]} 7. Nc3 {[%emt 0:00:30]} g6 {[%emt 0:00:30]} 8. Bc4 {[%emt 0:00:30]} Nb6 {[%emt 0:00:30]} 9. Bb3 {[%emt 0:00:30]} Bg7 {[%emt 0:00:30]} 10. d5 {[%emt 0:00:30]} Nb4 {[%emt 0:00:30]} 11. O-O {[%emt 0:00:30]} O-O {[%emt 0:00:30]} 12. Qd2 {[%emt 0:00:30]} Bf5 {[%emt 0:00:30]} 13. Nh4 {[%emt 0:00:30]} Bd7 {[%emt 0:00:30]} 14. Nf3 {[%emt 0:00:30]} Rc8 {[%emt 0:00:30]} 15. Rd1 {[%emt 0:00:30]} Bg4 {[%emt 0:00:30]} 16. Qf4 {[%emt 0:00:30]} Bxf3 {[%emt 0:00:30]} 17. Qxf3 {[%emt 0:00:30]} a5 {[%emt 0:00:30]} 18. Be3 {[%emt 0:00:30]} Nc4 {[%emt 0:00:30]} 19. Bxc4 {[%emt 0:00:30]} Rxc4 {[%emt 0:00:30]} 20. Qe2 {[%emt 0:00:30]} Rc8 {[%emt 0:00:30]} 21. a3 {[%emt 0:00:30]} Na6 {[%emt 0:00:30]} 22. Qb5 {[%emt 0:00:30]} Qc7 {[%emt 0:00:30]} 23. Bb6 {[%emt 0:00:30]} Qf4 {[%emt 0:00:30]} 24. Be3 {[%emt 0:00:30]} Qc7 {[%emt 0:00:30]} 25. Bb6 {[%emt 0:00:30]} Qf4 {[%emt 0:00:30]} 26. Be3 {[%emt 0:00:30]} Qc7 {[%emt 0:00:30]} 27. Bb6 {[%emt 0:00:30]} Qd8 {[%emt 0:52:06]} *